bitfinex/quotes_BTCUSD_20240605
["timestamp","ask_amount","ask_price","bid_price","bid_amount"]
[1717599968267,1.55440194,70906.0,70905.0,0.009493]
[1717599968476,1.04343551,70906.0,70905.0,0.009493]
[1717599968667,1.10142213,70906.0,70905.0,0.009493]
[1717599969007,1.10057593,70906.0,70905.0,0.009493]
[1717599969213,1.00057593,70906.0,70905.0,0.163193]
[1717599969416,1.00057593,70906.0,70905.0,0.238193]
[1717599969620,0.98657593,70906.0,70905.0,0.238193]
[1717599970220,0.29944993,70906.0,70905.0,0.24671624]
[1717599970426,0.15841893,70906.0,70905.0,0.24671624]
[1717599970817,0.17241893,70906.0,70905.0,0.24671624]
[1717599971030,0.15841893,70906.0,70905.0,0.24671624]
[1717599971229,0.17241893,70906.0,70905.0,0.24671624]
[1717599971429,0.17241893,70906.0,70905.0,0.28370324]
[1717599971628,0.17241893,70906.0,70905.0,0.42994178]
[1717599971629,0.15841893,70906.0,70905.0,0.42994178]
[1717599972053,0.14441893,70906.0,70905.0,0.42994178]
[1717599972307,0.14441893,70906.0,70905.0,0.39295478]
[1717599972772,0.17041893,70906.0,70905.0,0.39295478]
[1717599972909,0.17041893,70906.0,70905.0,0.24671624]
[1717599975125,0.17441893,70906.0,70905.0,0.24671624]
[1717599975793,0.17041893,70906.0,70905.0,0.24671624]
[1717599975962,0.17041893,70906.0,70905.0,0.28370324]
[1717599976169,0.17341893,70906.0,70905.0,0.28370324]
[1717599977908,0.17041893,70906.0,70905.0,0.28370324]
[1717599978062,0.17041893,70906.0,70905.0,0.24671624]
[1717599978261,0.17141893,70906.0,70905.0,0.24671624]
[1717599978847,0.17141893,70906.0,70905.0,0.26671624]
[1717599979059,0.16841893,70906.0,70905.0,0.26671624]
[1717599979261,0.16741893,70906.0,70905.0,0.24671624]
[1717599979467,0.16741893,70906.0,70905.0,0.26671624]
[1717599979677,0.16741893,70906.0,70905.0,0.30370324]
[1717599979888,0.16841893,70906.0,70905.0,0.28370324]
[1717599980127,0.16941893,70906.0,70905.0,0.24671624]
[1717599981153,0.16841893,70906.0,70905.0,0.26671624]
[1717599981361,0.16813336,70906.0,70905.0,0.26671624]
[1717599981645,0.6777,70912.0,70911.0,0.10767704]
[1717599981646,0.4692,70912.0,70911.0,0.10767704]
[1717599981864,0.4692,70912.0,70911.0,0.35277704]
[1717599983868,0.4722,70912.0,70911.0,0.35277704]
[1717599984295,0.4752,70912.0,70911.0,0.35277704]
[1717599984508,0.4752,70912.0,70911.0,0.40415784]
[1717599985176,0.47203027,70912.0,70911.0,0.40415784]
[1717599986316,0.46903027,70912.0,70911.0,0.40415784]
[1717599986671,0.47103027,70912.0,70911.0,0.40415784]
[1717599986845,0.002,70912.0,70911.0,0.40415784]
[1717599987043,0.004,70912.0,70911.0,0.40415784]
[1717599987533,0.145019,70912.0,70911.0,0.40415784]
[1717599988585,0.145019,70912.0,70911.0,0.30500404]
[1717599990410,0.31243793,70912.0,70911.0,0.2451]
[1717599990878,0.31243793,70912.0,70911.0,0.25362324]
[1717599991365,0.30843793,70912.0,70911.0,0.2451]
[1717599991594,0.31043793,70912.0,70911.0,0.2451]
[1717599991800,0.31043793,70912.0,70911.0,0.25536587]
[1717599992434,0.31243793,70912.0,70911.0,0.25536587]
[1717599992643,0.16941893,70912.0,70911.0,0.28090246]
[1717599993514,0.16741893,70912.0,70911.0,0.28090246]
[1717599993688,0.16741893,70912.0,70911.0,0.25536587]
[1717599993894,0.16941893,70912.0,70911.0,0.25536587]
[1717599994313,0.17141893,70912.0,70911.0,0.25536587]
[1717599994717,0.16941893,70912.0,70911.0,0.25536587]
[1717599995197,0.16741893,70912.0,70911.0,0.25536587]
[1717599995405,0.16941893,70912.0,70911.0,0.25536587]
[1717599995804,0.17141893,70912.0,70911.0,0.25536587]
[1717599996784,0.17141893,70912.0,70911.0,0.29081784]
[1717599997749,0.17141893,70912.0,70911.0,0.25536587]
[1717599999346,0.17141893,70912.0,70911.0,0.24684263]
[1717599999489,0.17141893,70912.0,70911.0,0.25536587]
[1717599999693,0.31243793,70912.0,70911.0,0.25536587]
[1717600000290,0.31243793,70912.0,70911.0,0.24684263]
[1717600000731,0.31243793,70912.0,70911.0,0.25536587]
[1717600001107,0.31243793,70912.0,70911.0,0.00174263]
[1717600001526,0.31243793,70912.0,70911.0,0.0006256]
[1717600003949,0.31043793,70912.0,70911.0,0.0006256]
[1717600005525,0.30843793,70912.0,70911.0,0.0006256]
[1717600005728,0.31043793,70912.0,70911.0,0.0006256]
[1717600006066,0.31243793,70912.0,70911.0,0.0006256]
[1717600006294,0.31043793,70912.0,70911.0,0.0006256]
[1717600006678,0.30843793,70912.0,70911.0,0.0006256]
[1717600007005,0.31243793,70912.0,70911.0,0.0006256]
[1717600009261,0.39669992,70912.0,70911.0,0.0006256]
[1717600009463,0.73017163,70912.0,70911.0,0.0006256]
[1717600009872,0.62484414,70912.0,70911.0,0.0006256]
[1717600010351,0.73017163,70912.0,70911.0,0.0006256]
[1717600010485,0.73017163,70912.0,70911.0,0.00914884]
[1717600010703,0.73017163,70912.0,70911.0,0.0006256]
[1717600010900,0.62484414,70912.0,70911.0,0.0006256]
[1717600011187,0.62284414,70912.0,70911.0,0.0006256]
[1717600011374,0.62284414,70912.0,70911.0,0.00914884]
[1717600011668,0.62484414,70912.0,70911.0,0.00914884]
[1717600013625,0.62284414,70912.0,70911.0,0.00914884]
[1717600013873,0.62484414,70912.0,70911.0,0.00914884]
[1717600015042,0.62485258,70912.0,70911.0,0.00914884]
[1717600015808,0.62485258,70912.0,70911.0,0.23814884]
[1717600016657,0.62485258,70912.0,70911.0,0.2296256]
[1717600017069,0.64216159,70912.0,70911.0,0.2296256]
[1717600017284,0.93567735,70912.0,70911.0,0.0006256]
[1717600017489,1.49372684,70912.0,70911.0,0.0006256]
[1717600017697,2.59603687,70912.0,70911.0,0.0006256]
[1717600017948,2.62199376,70912.0,70911.0,0.0006256]
[1717600018363,2.48024427,70912.0,70911.0,0.0006256]
[1717600018544,2.47824427,70912.0,70911.0,0.0006256]
[1717600018966,2.49024427,70912.0,70911.0,0.0006256]
[1717600019370,2.47844198,70912.0,70911.0,0.0006256]
[1717600019605,2.47644198,70912.0,70911.0,0.0006256]
[1717600019936,2.67644198,70912.0,70911.0,0.0006256]
[1717600020239,2.50244198,70912.0,70911.0,0.0006256]
[1717600020555,2.77669124,70912.0,70911.0,0.0006256]
[1717600020768,2.85060457,70912.0,70911.0,0.0006256]
[1717600020981,3.62579807,70912.0,70911.0,0.0006256]
[1717600022305,3.61379807,70912.0,70911.0,0.0006256]
[1717600022906,1.19954296,70906.0,70905.0,0.009493]
[1717600023112,1.55699013,70906.0,70905.0,0.009493]
[1717600023392,2.33311183,70906.0,70905.0,0.009493]
[1717600024063,2.33322077,70906.0,70905.0,0.009493]
[1717600024286,2.47559773,70906.0,70905.0,0.009493]
[1717600024506,2.55805024,70906.0,70905.0,0.009493]
[1717600024945,2.41567328,70906.0,70905.0,0.009493]
[1717600025413,2.55800968,70906.0,70905.0,0.009493]
[1717600025639,2.67210233,70906.0,70905.0,0.009493]
[1717600025871,1.88959896,70902.0,70887.0,0.009493]
[1717600026107,2.38331789,70902.0,70887.0,0.009493]
[1717600026338,3.05964609,70902.0,70887.0,0.009493]
[1717600026598,3.15964609,70902.0,70887.0,0.009493]
[1717600026800,3.05964609,70902.0,70887.0,0.009493]
[1717600027001,3.23389535,70902.0,70887.0,0.009493]
[1717600027210,3.13389535,70902.0,70887.0,0.009493]
[1717600027519,3.23389535,70902.0,70887.0,0.009493]
[1717600027732,3.13389535,70902.0,70887.0,0.009493]
[1717600027934,3.23389535,70902.0,70887.0,0.009493]
[1717600028140,3.13389535,70902.0,70887.0,0.009493]
[1717600028473,3.24789535,70902.0,70887.0,0.009493]
[1717600029236,3.23389535,70902.0,70887.0,0.009493]
[1717600029637,3.24804518,70902.0,70887.0,0.009493]
[1717600030036,3.14804518,70902.0,70887.0,0.009493]
[1717600030240,2.94804518,70902.0,70889.0,0.0777]
[1717600030449,3.04804518,70902.0,70889.0,0.0777]
[1717600030848,2.58410291,70902.0,70889.0,0.0777]
[1717600030993,2.27156715,70902.0,70889.0,0.0777]
[1717600031192,2.48407984,70902.0,70889.0,0.0777]
[1717600031415,2.58407984,70902.0,70889.0,0.0777]
[1717600031668,2.47970762,70902.0,70889.0,0.0777]
[1717600031868,2.47970762,70902.0,70887.0,0.009493]
[1717600031869,2.18862862,70902.0,70901.0,0.0802]
[1717600032058,2.17462862,70902.0,70901.0,0.2311]
[1717600032498,2.15884594,70902.0,70901.0,0.2311]
[1717600032684,2.16062862,70902.0,70901.0,0.2311]
[1717600033108,2.24484546,70902.0,70901.0,0.2311]
[1717600033317,2.18610538,70902.0,70901.0,0.2311]
[1717600033530,2.20010538,70902.0,70901.0,0.2311]
[1717600033736,2.21162862,70902.0,70901.0,0.2311]
[1717600033931,2.29584802,70902.0,70901.0,0.2311]
[1717600034285,2.21162862,70902.0,70901.0,0.2311]
[1717600034487,2.19584682,70902.0,70901.0,0.2311]
[1717600034699,2.30732358,70902.0,70901.0,0.1549]
[1717600035263,2.30732358,70902.0,70901.0,0.004]
[1717600035264,2.72052045,70902.0,70901.0,0.004]
[1717600035474,2.83714845,70902.0,70901.0,0.004]
[1717600035686,2.65114845,70902.0,70901.0,0.004]
[1717600036236,2.85514845,70902.0,70901.0,0.004]
[1717600036748,2.87244827,70902.0,70901.0,0.004]
[1717600037340,2.85844827,70902.0,70901.0,0.004]
[1717600037721,2.85865927,70902.0,70901.0,0.004]
[1717600038126,2.84465927,70902.0,70901.0,0.004]
[1717600038352,2.64465927,70902.0,70901.0,0.004]
[1717600038683,2.65865927,70902.0,70901.0,0.004]
[1717600039147,2.68510943,70902.0,70901.0,0.004]
[1717600039358,2.67110943,70902.0,70901.0,0.004]
[1717600039761,2.68510943,70902.0,70901.0,0.004]
[1717600040182,2.89910943,70902.0,70901.0,0.004]
[1717600040628,2.88510943,70902.0,70901.0,0.004]
[1717600040840,2.78510943,70902.0,70901.0,0.004]
[1717600041076,2.88510943,70902.0,70901.0,0.004]
[1717600041265,2.58510943,70902.0,70901.0,0.004]
[1717600041478,2.88510943,70902.0,70901.0,0.004]
[1717600041605,2.95733767,70902.0,70901.0,0.004]
[1717600041817,3.4088821,70902.0,70901.0,0.004]
[1717600042641,0.43465476,70892.0,70891.0,0.002]
[1717600042842,1.12309749,70892.0,70891.0,0.002]
[1717600043053,1.40373973,70892.0,70891.0,0.002]
[1717600043261,1.39373973,70892.0,70891.0,0.002]
[1717600043425,1.45019973,70892.0,70891.0,0.002]
[1717600043827,1.53441947,70892.0,70891.0,0.002]
[1717600044069,1.54741947,70892.0,70891.0,0.002]
[1717600044416,1.55889623,70892.0,70891.0,0.002]
[1717600044729,1.54741947,70892.0,70891.0,0.002]
[1717600044934,1.55889623,70892.0,70891.0,0.002]
[1717600045142,1.7040141,70892.0,70891.0,0.002]
[1717600045369,1.61979436,70892.0,70891.0,0.002]
[1717600045982,1.60679436,70892.0,70891.0,0.002]
[1717600046209,2.1619878,70892.0,70891.0,0.002]
[1717600046423,2.3067878,70892.0,70891.0,0.002]
[1717600046640,2.37251664,70892.0,70891.0,0.002]
[1717600047290,2.03358446,70892.0,70891.0,0.002]
[1717600047498,2.13321998,70892.0,70891.0,0.002]
[1717600047705,1.82065593,70892.0,70891.0,0.002]
[1717600047910,2.13322434,70892.0,70891.0,0.002]
[1717600048416,2.0609961,70892.0,70891.0,0.002]
[1717600048620,1.90523459,70892.0,70891.0,0.002]
[1717600048818,1.7610771,70892.0,70891.0,0.002]
[1717600049343,1.55363627,70892.0,70891.0,0.002]
[1717600049698,1.64652897,70892.0,70891.0,0.002]
[1717600049896,1.22867593,70892.0,70891.0,0.002]
[1717600050123,0.93255693,70892.0,70891.0,0.002]
[1717600050301,0.93255693,70892.0,70891.0,0.01052324]
[1717600050501,0.91820973,70892.0,70891.0,0.24552324]
[1717600050710,0.87609693,70892.0,70891.0,0.237]
[1717600050932,0.80062093,70892.0,70891.0,0.237]
[1717600051140,0.29847793,70892.0,70891.0,0.27102486]
[1717600051759,0.32147793,70892.0,70891.0,0.24552324]
[1717600051990,0.30847793,70892.0,70891.0,0.24552324]
[1717600052388,0.32147793,70892.0,70891.0,0.24552324]
[1717600052992,0.32247793,70892.0,70891.0,0.24552324]
[1717600053391,0.30847793,70892.0,70891.0,0.24552324]
[1717600053590,0.31447793,70892.0,70891.0,0.24552324]
[1717600054312,0.30847793,70892.0,70891.0,0.24552324]
[1717600054746,0.17341893,70892.0,70891.0,0.27102486]
[1717600055475,0.17341893,70892.0,70891.0,0.24552324]
[1717600056116,0.18641893,70892.0,70891.0,0.24552324]
[1717600056493,0.17341893,70892.0,70891.0,0.24552324]
[1717600057514,0.16741893,70892.0,70891.0,0.24552324]
[1717600057919,0.17341893,70892.0,70891.0,0.24552324]
[1717600058193,0.16741893,70892.0,70891.0,0.24552324]
[1717600058420,0.17341893,70892.0,70891.0,0.24552324]
[1717600058631,0.17941893,70892.0,70891.0,0.24552324]
[1717600064488,0.22158349,70892.0,70891.0,0.24552324]
[1717600065299,0.17941893,70892.0,70891.0,0.24552324]
[1717600066163,0.32047793,70892.0,70891.0,0.24552324]
[1717600066320,0.38372477,70892.0,70891.0,0.24552324]
[1717600066948,0.38379221,70892.0,70891.0,0.24552324]
[1717600067584,0.38379221,70892.0,70891.0,0.237]
[1717600067763,0.38379221,70892.0,70891.0,0.24552324]
[1717600067969,0.32047793,70892.0,70891.0,0.24552324]
[1717600068170,0.3837918,70892.0,70891.0,0.24552324]
[1717600068376,0.71738046,70892.0,70891.0,0.24552324]
[1717600068578,0.63296142,70892.0,70891.0,0.24552324]
[1717600068753,0.38379038,70892.0,70891.0,0.24552324]
[1717600069363,0.38379038,70892.0,70891.0,0.237]
[1717600069567,0.32047793,70892.0,70891.0,0.24552324]
[1717600070235,0.32047793,70892.0,70891.0,0.237]
[1717600070434,0.63296865,70892.0,70891.0,0.237]
[1717600070659,0.63296865,70892.0,70891.0,0.24552324]
[1717600070814,0.71738344,70892.0,70891.0,0.24552324]
[1717600071780,0.71738344,70892.0,70891.0,0.237]
[1717600071981,0.71738344,70892.0,70891.0,0.24552324]
[1717600072385,0.32047793,70892.0,70891.0,0.24552324]
[1717600072803,0.38379064,70892.0,70891.0,0.24552324]
[1717600073766,0.32047793,70892.0,70891.0,0.24552324]
[1717600074389,0.36268596,70892.0,70891.0,0.27794024]
[1717600074568,0.32047793,70892.0,70891.0,0.27794024]
[1717600074769,0.36268549,70892.0,70891.0,0.27794024]
[1717600075469,0.32047793,70892.0,70891.0,0.27794024]
[1717600075642,0.32047793,70892.0,70891.0,0.24052324]
[1717600075796,0.38379046,70892.0,70891.0,0.24052324]
[1717600076003,0.32047793,70892.0,70891.0,0.24052324]
[1717600076201,0.38379046,70892.0,70891.0,0.24052324]
[1717600078236,0.32047793,70892.0,70891.0,0.24052324]
[1717600078462,0.3837949,70892.0,70891.0,0.24052324]
[1717600079095,0.3837949,70892.0,70891.0,0.27544024]
[1717600079304,0.32047793,70892.0,70891.0,0.27544024]
[1717600080175,0.32047793,70892.0,70891.0,0.24052324]
[1717600081527,0.36268583,70892.0,70891.0,0.24052324]
[1717600081732,0.0772079,70892.0,70891.0,0.24052324]
[1717600081903,0.0542079,70892.0,70891.0,0.35967704]
[1717600082110,0.012,70892.0,70891.0,0.33967704]
[1717600082315,0.012,70892.0,70891.0,0.39659404]
[1717600083748,0.012,70892.0,70891.0,0.37659404]
[1717600084208,0.29747793,70892.0,70891.0,0.232]
[1717600084412,0.36268287,70892.0,70891.0,0.232]
[1717600084656,0.32047793,70892.0,70891.0,0.24052324]
[1717600087133,0.17941893,70892.0,70891.0,0.24052324]
[1717600087368,0.17941893,70892.0,70891.0,0.27744024]
[1717600087522,0.012,70892.0,70891.0,0.37659404]
[1717600087703,0.012,70892.0,70891.0,0.39659404]
[1717600090435,0.153059,70892.0,70891.0,0.24052324]
[1717600090645,0.176059,70892.0,70891.0,0.33967704]
[1717600091061,0.035,70892.0,70891.0,0.33967704]
[1717600091173,0.012,70892.0,70891.0,0.39659404]
[1717600091378,0.006,70892.0,70891.0,0.39659404]
[1717600091609,0.007,70892.0,70891.0,0.39659404]
[1717600091814,0.007,70892.0,70891.0,0.38659404]
[1717600092035,0.007,70892.0,70891.0,0.39659404]
[1717600092265,0.04220494,70896.0,70895.0,0.11767704]
[1717600092489,0.04220494,70896.0,70895.0,0.36964254]
[1717600092733,0.04220494,70896.0,70895.0,0.37964254]
[1717600093330,0.04220494,70896.0,70895.0,0.38964254]
[1717600094344,0.04220494,70896.0,70895.0,0.53269554]
[1717600094779,0.14793171,70902.0,70895.0,0.53269554]
[1717600094780,0.000211,70902.0,70901.0,0.1091538]
[1717600095162,0.023211,70902.0,70901.0,0.40678934]
[1717600095632,0.000211,70902.0,70901.0,0.41678934]
[1717600095842,0.000211,70902.0,70901.0,0.55783034]
[1717600096557,0.005211,70902.0,70901.0,0.55783034]
[1717600097198,0.000211,70902.0,70901.0,0.55783034]
[1717600097460,0.001211,70902.0,70901.0,0.55883034]
[1717600098013,0.000211,70902.0,70901.0,0.55783034]
[1717600099127,0.000211,70902.0,70901.0,0.55800012]
[1717600099538,0.001211,70902.0,70901.0,0.56500012]
[1717600100669,0.001211,70902.0,70901.0,0.76500012]
[1717600100922,0.001211,70902.0,70901.0,0.84708312]
[1717600102709,0.002211,70902.0,70901.0,0.84708312]
[1717600104585,0.002211,70902.0,70901.0,0.56000012]
[1717600107105,0.002211,70902.0,70901.0,0.54000012]
[1717600107315,0.002211,70902.0,70901.0,0.10984682]
[1717600107516,0.002211,70902.0,70901.0,0.00716978]
[1717600107680,0.002211,70902.0,70901.0,0.10984682]
[1717600108036,0.025211,70902.0,70901.0,0.00716978]
[1717600108236,0.16625,70902.0,70901.0,0.00716978]
[1717600108474,0.18605,70902.0,70901.0,0.00716978]
[1717600109315,0.18605,70902.0,70901.0,0.00016978]
[1717600109316,0.18505,70902.0,70901.0,0.00016978]
[1717600109735,0.30866893,70902.0,70901.0,0.00016978]
[1717600110355,0.60722469,70902.0,70901.0,0.00416978]
[1717600110567,0.59674793,70902.0,70901.0,0.00416978]
[1717600110972,0.59574793,70902.0,70901.0,0.00416978]
[1717600111304,0.9944715,70902.0,70901.0,0.00416978]
[1717600111509,0.91022231,70902.0,70901.0,0.00416978]
[1717600111841,0.91822231,70902.0,70901.0,0.00416978]
[1717600112029,1.00147356,70902.0,70901.0,0.00016978]
[1717600112228,0.91869907,70902.0,70901.0,0.00016978]
[1717600112455,0.90922231,70902.0,70901.0,0.00016978]
[1717600112618,0.91922231,70902.0,70901.0,0.00016978]
[1717600112818,0.91722231,70902.0,70901.0,0.00016978]
[1717600113014,0.93269907,70902.0,70901.0,0.00016978]
[1717600113665,0.93355907,70902.0,70901.0,0.00016978]
[1717600113866,1.01781032,70902.0,70901.0,0.00016978]
[1717600114221,1.03181032,70902.0,70901.0,0.00016978]
[1717600114428,1.03181032,70902.0,70894.0,0.10267704]
[1717600114429,0.141053,70895.0,70894.0,0.10267704]
[1717600114628,0.164053,70895.0,70894.0,0.10267704]
[1717600115558,0.164053,70895.0,70894.0,0.0941538]
[1717600115759,0.175053,70895.0,70894.0,0.0941538]
[1717600116009,0.141059,70892.0,70891.0,0.000946]
[1717600116211,0.164059,70892.0,70891.0,0.000946]
[1717600116453,0.32927793,70892.0,70891.0,0.000946]
[1717600116625,0.61139693,70892.0,70891.0,0.000946]
[1717600116854,0.81989693,70892.0,70891.0,0.000946]
[1717600117874,0.86202372,70892.0,70891.0,0.000946]
[1717600118642,0.86902372,70892.0,70891.0,0.000946]
[1717600119049,0.87602372,70892.0,70891.0,0.000946]
[1717600119250,0.83389693,70892.0,70891.0,0.000946]
[1717600120876,0.84537369,70892.0,70891.0,0.000946]
[1717600122595,0.83389693,70892.0,70891.0,0.000946]
[1717600123879,0.83389693,70892.0,70891.0,0.00946924]
[1717600124636,0.83389693,70892.0,70891.0,0.000946]
[1717600124845,0.83372715,70892.0,70891.0,0.000946]
[1717600125077,0.83372715,70892.0,70891.0,0.00946924]
[1717600125675,0.83372715,70892.0,70891.0,0.24646924]
[1717600125676,0.54766315,70892.0,70891.0,0.24646924]
[1717600125880,0.15488922,70892.0,70891.0,0.34062304]
[1717600126069,0.15488922,70892.0,70891.0,0.37563464]
[1717600126859,0.17788922,70892.0,70891.0,0.37563464]
[1717600128380,0.17788922,70892.0,70891.0,0.3671114]
[1717600128984,0.17788922,70892.0,70891.0,0.1301114]
[1717600129195,0.32230815,70892.0,70891.0,0.000946]
[1717600130752,0.60442715,70892.0,70891.0,0.000946]
[1717600135363,0.60442715,70892.0,70891.0,0.00946924]
[1717600138093,0.60442715,70892.0,70891.0,0.000946]
[1717600140079,0.91482291,70892.0,70891.0,0.000946]
[1717600140280,1.02372915,70892.0,70891.0,0.000946]
[1717600140608,0.98562112,70892.0,70891.0,0.000946]
[1717600140768,1.66449372,70892.0,70891.0,0.000946]
[1717600141097,1.58027766,70892.0,70891.0,0.000946]
[1717600141526,1.57327766,70892.0,70891.0,0.000946]
[1717600141889,1.36387994,70892.0,70891.0,0.000946]
[1717600142092,1.3843567,70892.0,70891.0,0.000946]
[1717600142298,1.0184896,70892.0,70891.0,0.000946]
[1717600142500,1.0114896,70892.0,70891.0,0.000946]
[1717600142877,0.70832256,70892.0,70891.0,0.000946]
[1717600143082,0.60742715,70892.0,70891.0,0.000946]
[1717600143496,0.64952435,70892.0,70891.0,0.000946]
[1717600143878,0.59942715,70892.0,70891.0,0.000946]
[1717600144287,0.64152435,70892.0,70891.0,0.000946]
[1717600144493,0.63252435,70892.0,70891.0,0.000946]
[1717600145011,0.64652435,70892.0,70891.0,0.000946]
[1717600145214,0.60442715,70892.0,70891.0,0.000946]
[1717600145823,0.60342715,70892.0,70891.0,0.000946]
[1717600146519,0.59042715,70892.0,70891.0,0.000946]
[1717600147368,0.64054889,70892.0,70891.0,0.000946]
[1717600147707,0.59842715,70892.0,70891.0,0.000946]
[1717600148282,0.66157239,70892.0,70891.0,0.000946]
[1717600148793,0.99523132,70892.0,70891.0,0.000946]
[1717600148931,1.05217156,70892.0,70891.0,0.000946]
[1717600149166,1.05303366,70892.0,70891.0,0.000946]
[1717600149375,0.96874523,70892.0,70891.0,0.000946]
[1717600150398,0.91180499,70892.0,70891.0,0.000946]
[1717600150568,0.96090163,70892.0,70891.0,0.000946]
[1717600150801,0.96890289,70892.0,70891.0,0.000946]
[1717600151007,0.96090289,70892.0,70891.0,0.000946]
[1717600151215,0.19,70888.0,70887.0,0.009493]
[1717600151429,1.28233439,70888.0,70887.0,0.009493]
[1717600151639,1.66748003,70888.0,70887.0,0.009493]
[1717600151806,1.58377503,70888.0,70887.0,0.009493]
[1717600152028,1.64433805,70888.0,70887.0,0.009493]
[1717600152381,1.93431925,70888.0,70887.0,0.009493]
[1717600152675,2.49219087,70888.0,70887.0,0.009493]
[1717600153266,2.60864288,70888.0,70887.0,0.009493]
[1717600153467,2.81264288,70888.0,70887.0,0.009493]
[1717600153909,2.61264288,70888.0,70887.0,0.009493]
[1717600154337,2.95516826,70888.0,70887.0,0.009493]
[1717600154541,2.81264288,70888.0,70887.0,0.009493]
[1717600155116,2.06255216,70888.0,70887.0,0.009493]
[1717600155327,2.91275837,70888.0,70887.0,0.009493]
[1717600155942,2.98476936,70888.0,70887.0,0.009493]
[1717600156285,2.93375837,70888.0,70887.0,0.009493]
[1717600156505,2.99238378,70888.0,70887.0,0.009493]
[1717600157073,3.00638378,70888.0,70887.0,0.009493]
[1717600157389,3.00638378,70888.0,70885.0,0.00086]
[1717600157390,1.60482296,70886.0,70885.0,0.00086]
[1717600157595,0.45840196,70882.0,70881.0,0.004]
[1717600157830,1.65333883,70882.0,70881.0,0.004]
[1717600158014,1.67633883,70882.0,70881.0,0.004]
[1717600158217,2.25641463,70882.0,70881.0,0.004]
[1717600158425,1.30694176,70875.0,70873.0,0.009493]
[1717600158601,2.24236928,70875.0,70873.0,0.009493]
[1717600159322,2.83040148,70875.0,70873.0,0.009493]
[1717600159526,1.04709796,70874.0,70873.0,0.009493]
[1717600159740,0.92281796,70872.0,70871.0,0.0003214]
[1717600159940,1.4222508,70872.0,70871.0,0.0003214]
[1717600160117,2.38655394,70872.0,70871.0,0.0003214]
[1717600160522,2.52895034,70872.0,70871.0,0.0003214]
[1717600160724,2.50640469,70872.0,70871.0,0.0003214]
[1717600160930,2.75152256,70872.0,70871.0,0.0003214]
[1717600161398,2.53167181,70872.0,70871.0,0.0003214]
[1717600161831,0.92284796,70869.0,70868.0,0.00567861]
[1717600162076,1.34239973,70869.0,70868.0,0.00067861]
[1717600162277,1.51120713,70869.0,70868.0,0.00067861]
[1717600162941,1.71120713,70869.0,70868.0,0.00067861]
[1717600163369,1.58480127,70869.0,70868.0,0.00067861]
[1717600163596,1.38480127,70869.0,70868.0,0.00067861]
[1717600163799,1.00507196,70868.0,70861.0,0.008]
[1717600164014,1.68781164,70868.0,70861.0,0.008]
[1717600164421,1.85401561,70868.0,70861.0,0.008]
[1717600164609,1.72760975,70868.0,70861.0,0.008]
[1717600164815,1.68781164,70868.0,70861.0,0.008]
[1717600166410,1.58509531,70868.0,70861.0,0.008]
[1717600166617,1.28555835,70868.0,70861.0,0.0889]
[1717600166827,0.94995393,70868.0,70867.0,0.241493]
[1717600167040,0.29952593,70868.0,70867.0,0.25001624]
[1717600167272,0.29952593,70868.0,70867.0,0.28443324]
[1717600168529,0.28552593,70868.0,70867.0,0.28443324]
[1717600168728,0.29952593,70868.0,70867.0,0.28443324]
[1717600169169,0.28552593,70868.0,70867.0,0.28443324]
[1717600169587,0.30852593,70868.0,70867.0,0.28443324]
[1717600169784,0.023,70868.0,70867.0,0.37858704]
[1717600169987,0.023,70873.0,70872.0,0.00852324]
[1717600170228,0.16741893,70873.0,70872.0,0.23982324]
[1717600170426,0.30851593,70873.0,70872.0,0.23982324]
[1717600171041,0.16741893,70873.0,70872.0,0.23982324]
[1717600171212,0.16741893,70873.0,70872.0,0.27761194]
[1717600171418,0.16741893,70873.0,70872.0,0.2690887]
[1717600171617,0.16741893,70873.0,70872.0,0.27761194]
[1717600171817,0.16741893,70873.0,70872.0,0.2313]
[1717600171818,0.30851593,70873.0,70872.0,0.2313]
[1717600172020,0.31351593,70873.0,70872.0,0.2313]
[1717600172187,0.31351593,70873.0,70872.0,0.23982324]
[1717600172587,0.31351593,70873.0,70872.0,0.2313]
[1717600173567,0.31851593,70873.0,70872.0,0.2313]
[1717600176867,0.141107,70868.0,70867.0,0.009493]
[1717600177057,0.88443069,70868.0,70867.0,0.009493]
[1717600177447,0.94754759,70868.0,70867.0,0.009493]
[1717600177849,0.93607083,70868.0,70867.0,0.009493]
[1717600178620,0.94754759,70868.0,70867.0,0.010493]
[1717600179455,1.05040358,70868.0,70867.0,0.010493]
[1717600179661,1.36950068,70868.0,70867.0,0.010493]
[1717600180025,1.84438151,70868.0,70867.0,0.009493]
[1717600180262,2.04838151,70868.0,70867.0,0.009493]
[1717600180505,1.9752201,70868.0,70867.0,0.009493]
[1717600180708,2.01067656,70868.0,70867.0,0.009493]
[1717600181125,2.02474878,70868.0,70867.0,0.009493]
[1717600182341,2.15115464,70868.0,70867.0,0.009493]
[1717600182748,2.15112347,70868.0,70867.0,0.009493]
[1717600182960,2.02471761,70868.0,70867.0,0.009493]
[1717600183717,2.02471761,70868.0,70861.0,0.008]
[1717600183718,1.79515596,70862.0,70861.0,0.008]
[1717600183979,2.58371987,70862.0,70861.0,0.008]
[1717600184172,2.63951738,70862.0,70861.0,0.008]
[1717600185352,1.19940776,70855.0,70854.0,0.0237416]
[1717600185565,1.66368211,70855.0,70854.0,0.0237416]
[1717600185771,1.61518203,70855.0,70854.0,0.0237416]
[1717600185987,1.9602999,70855.0,70854.0,0.0237416]
[1717600186590,1.7602999,70855.0,70854.0,0.0237416]
[1717600186787,1.73043574,70855.0,70854.0,0.0237416]
[1717600187465,1.76613012,70855.0,70854.0,0.0237416]
[1717600188303,1.73043574,70855.0,70854.0,0.0237416]
[1717600189086,1.74443574,70855.0,70854.0,0.0237416]
[1717600189675,1.75843574,70855.0,70854.0,0.0237416]
[1717600189875,1.74443574,70855.0,70854.0,0.0237416]
[1717600190305,1.75843574,70855.0,70854.0,0.0237416]
[1717600190879,1.86365217,70855.0,70854.0,0.0237416]
[1717600191446,2.06365217,70855.0,70854.0,0.0237416]
[1717600191657,1.85365217,70855.0,70854.0,0.0237416]
[1717600191858,1.83965217,70855.0,70854.0,0.0237416]
[1717600192428,1.85636238,70855.0,70854.0,0.0237416]
[1717600192622,1.76514405,70855.0,70854.0,0.0237416]
[1717600192752,1.96514405,70855.0,70854.0,0.0237416]
[1717600193118,1.95114405,70855.0,70854.0,0.0237416]
[1717600193352,1.93714405,70855.0,70854.0,0.0237416]
[1717600193560,1.95114405,70855.0,70854.0,0.0237416]
[1717600193737,1.98944405,70855.0,70854.0,0.0237416]
[1717600194149,1.97544405,70855.0,70854.0,0.0237416]